bitfinex-derivatives/quotes_SOLF0:USTF0_20250819
["timestamp","ask_amount","ask_price","bid_price","bid_amount"]
[1755627569346,4.81737838,178.5,178.39,4.69027573]
[1755627569548,4.81737838,178.47,178.36,4.69027573]
[1755627569846,4.81737838,178.47,178.34,6.31788692]
[1755627569847,4.81737838,178.47,178.34,4.69027573]
[1755627570247,4.81737838,178.47,178.33,9.50765411]
[1755627571344,4.81737838,178.47,178.33,4.81737838]
[1755627571943,4.81737838,178.44,178.31,4.69027573]
[1755627572136,4.81737838,178.44,178.3,4.81737838]
[1755627573646,4.81737838,178.41,178.3,4.81737838]
[1755627574446,4.81737838,178.41,178.29,143.11737838]
[1755627576850,4.81737838,178.41,178.29,148.72617838]
[1755627577044,4.81737838,178.41,178.29,143.11737838]
[1755627577739,4.81737838,178.41,178.29,138.3]
[1755627578142,4.81737838,178.38,178.26,568.81452531]
[1755627578340,4.81737838,178.38,178.26,563.99714693]
[1755627580751,4.81737838,178.38,178.26,568.81452531]
[1755627581651,4.81737838,178.38,178.26,563.99714693]
[1755627585548,4.81737838,178.38,178.27,138.42]
[1755627588156,0.9761297,178.37,178.27,138.42]
[1755627591359,4.81737838,178.41,178.29,4.81737838]
[1755627591664,0.97597913,178.41,178.3,138.44]
[1755627593851,5.79335751,178.41,178.3,138.44]
[1755627596264,3.0,178.4,178.31,0.06]
[1755627599265,138.44,178.43,178.33,0.07]
[1755627599467,141.45,178.43,178.33,0.07]
[1755627600264,3.01,178.42,178.33,0.07]
[1755627600566,3.98585598,178.42,178.33,0.07]
[1755627600867,3.01,178.42,178.33,0.07]
[1755627601564,3.01,178.42,178.3,4.81737838]
[1755627601761,3.01,178.4,178.3,143.23737838]
[1755627602371,3.01,178.4,178.3,138.42]
[1755627602574,3.01,178.4,178.29,0.07]
[1755627602777,5.79333014,178.41,178.28,138.42]
[1755627602966,3.01,178.39,178.29,0.07]
[1755627603677,3.01,178.39,178.3,4.81737838]
[1755627604178,3.01,178.39,178.29,0.07]
[1755627605984,4.81737838,178.38,178.29,0.07]
[1755627606285,4.81737838,178.38,178.28,138.42]
[1755627607784,0.97595176,178.41,178.28,138.42]
[1755627607984,5.79333014,178.41,178.28,138.42]
[1755627611179,5.79333014,178.41,178.28,144.0288]
[1755627611381,0.97595176,178.41,178.3,4.81737838]
[1755627611577,0.97595176,178.41,178.33,4.81737838]
[1755627611780,376.68,178.45,178.33,4.81737838]
[1755627611980,0.97581493,178.44,178.33,4.81737838]
[1755627612383,0.97581493,178.44,178.34,138.42]
[1755627613189,5.79319331,178.44,178.34,138.42]
[1755627615291,5.79319331,178.44,178.34,143.06705263]
[1755627615490,0.97581493,178.44,178.34,143.06705263]
[1755627615793,4.81737838,178.47,178.34,143.06705263]
[1755627615984,4.81737838,178.44,178.34,138.42]
[1755627616185,0.97574653,178.43,178.34,138.42]
[1755627618287,0.97574653,178.43,178.34,143.06705263]
[1755627618483,4.81737838,178.45,178.34,143.06705263]
[1755627618679,5.79309755,178.45,178.34,143.06705263]
[1755627620087,5.79309755,178.45,178.34,138.42]
[1755627620294,5.79309755,178.45,178.34,143.06705263]
[1755627620591,5.79309755,178.45,178.34,138.42]
[1755627620986,4.81737838,178.42,178.33,4.64705263]
[1755627621588,4.81737838,178.42,178.32,4.64705263]
[1755627623186,4.81737838,178.39,178.3,4.64705263]
[1755627623390,4.81737838,178.39,178.29,143.04705263]
[1755627623590,4.81737838,178.39,178.29,138.4]
[1755627623794,4.81737838,178.39,178.28,4.64705263]
[1755627623795,4.81737838,178.39,178.27,4.64705263]
[1755627624593,4.81737838,178.36,178.27,4.64705263]
[1755627626796,4.81737838,178.39,178.27,4.64705263]
[1755627626997,4.81737838,178.39,178.29,4.64705263]
[1755627628298,4.81737838,178.39,178.28,4.64705263]
[1755627629500,4.81737838,178.36,178.26,192.16419956]
[1755627630290,4.81737838,178.36,178.26,187.51714693]
[1755627630795,4.81737838,178.36,178.26,192.16419956]
[1755627635101,4.81737838,178.36,178.26,187.51714693]
[1755627637102,4.81737838,178.44,178.26,196.98157794]
[1755627637103,4.81737838,178.39,178.26,196.98157794]
[1755627637302,4.81737838,178.39,178.27,4.64705263]
[1755627637496,4.81737838,178.39,178.28,4.64705263]
[1755627637697,4.81737838,178.44,178.32,4.81737838]
[1755627637897,4.81737838,178.44,178.32,9.46443101]
[1755627638107,4.81737838,178.44,178.33,4.64705263]
[1755627638399,4.81737838,178.44,178.32,9.46443101]
[1755627638799,4.81737838,178.44,178.31,4.64705263]
[1755627641505,4.81737838,178.44,178.3,4.64705263]
[1755627641899,4.81737838,178.41,178.29,9.46443101]
[1755627642096,4.81737838,178.41,178.28,4.64705263]
[1755627642906,4.81737838,178.38,178.28,4.64705263]
[1755627643105,4.81737838,178.38,178.26,330.60419956]
[1755627643314,4.81737838,178.35,178.26,325.95714693]
[1755627644006,4.81737838,178.35,178.26,187.51714693]
[1755627644708,4.81737838,178.35,178.22,4.64705263]
[1755627645903,4.81737838,178.35,178.23,4.64705263]
[1755627646207,4.81737838,178.35,178.22,4.64705263]
[1755627648110,4.81737838,178.35,178.23,9.46443101]
[1755627649409,4.81737838,178.35,178.22,4.64705263]
[1755627649609,4.81737838,178.32,178.22,4.64705263]
[1755627653709,4.81737838,178.35,178.22,4.64705263]
[1755627656117,4.81737838,178.32,178.22,4.64705263]
[1755627656616,4.81737838,178.32,178.21,519.96705263]
[1755627657415,4.81737838,178.32,178.21,138.44]
[1755627657621,6.21776467,178.37,178.21,138.44]
[1755627657825,4.81737838,178.28,178.21,138.44]
[1755627659210,4.81737838,178.28,178.18,4.64705263]
[1755627659410,4.81737838,178.28,178.16,4.64705263]
[1755627659609,4.81737838,178.25,178.16,4.64705263]
[1755627659815,4.81737838,178.25,178.15,138.46]
[1755627660318,4.81737838,178.22,178.12,4.64705263]
[1755627660520,4.81737838,178.22,178.1,4.64705263]
[1755627660722,4.81737838,178.22,178.09,138.46]
[1755627660723,4.81737838,178.22,178.09,143.10705263]
[1755627661124,4.81737838,178.22,178.09,138.46]
[1755627661318,4.81737838,178.22,178.09,143.10705263]
[1755627661519,4.81737838,178.22,178.09,138.46]
[1755627662720,4.81737838,178.19,178.06,298.27716186]
[1755627663820,4.81737838,178.19,178.08,4.81737838]
[1755627664012,4.81737838,178.21,178.08,4.81737838]
[1755627664925,138.52,178.26,178.11,4.81737838]
[1755627665118,143.33737838,178.26,178.11,4.81737838]
[1755627665824,4.81737838,178.23,178.1,143.35737838]
[1755627666024,4.81737838,178.23,178.1,138.54]
[1755627666227,4.81737838,178.24,178.11,4.81737838]
[1755627666421,3.09,178.25,178.14,4.81737838]
[1755627666621,3.09,178.25,178.15,0.07]
[1755627667017,3.09,178.25,178.17,4.81737838]
[1755627667222,377.06,178.28,178.18,0.07]
[1755627667422,380.15,178.28,178.18,0.07]
[1755627668025,138.82,178.34,178.2,4.81737838]
[1755627668026,4.81737838,178.33,178.2,4.81737838]
[1755627668230,3.09,178.32,178.21,0.07]
[1755627669432,3.09,178.32,178.18,0.07]
[1755627671530,7.47688183,178.3,178.18,0.07]
[1755627671731,3.09,178.29,178.18,0.07]
[1755627671931,3.09,178.29,178.14,0.07]
[1755627672436,3.09,178.25,178.14,0.07]
[1755627676528,3.09,178.25,178.11,138.78]
[1755627676726,3.09,178.25,178.1,0.07]
[1755627683831,3.09,178.25,178.08,7.47688183]
[1755627683832,3.09,178.25,178.11,0.07]
[1755627684037,3.09,178.25,178.08,7.47688183]
[1755627684038,3.09,178.25,178.13,0.07]
[1755627684838,10.56688183,178.25,178.13,0.07]
[1755627685138,3.09,178.24,178.13,0.07]
[1755627688433,3.09,178.24,178.14,0.07]
[1755627691334,2.87,178.22,178.14,0.07]
[1755627693041,2.87,178.21,178.11,0.07]
[1755627696644,2.87,178.18,178.08,0.07]
[1755627698544,4.81166154,178.16,178.08,0.07]
[1755627698845,2.87,178.15,178.08,0.07]
[1755627699243,2.87,178.15,178.04,0.07]
[1755627701547,2.87,178.15,178.0,145.15788692]
[1755627701548,7.68166154,178.18,178.06,0.07]
[1755627701734,2.87,178.18,178.06,0.07]
[1755627704043,2.87,178.17,178.06,0.07]
[1755627705539,2.87,178.2,178.09,0.07]
[1755627705748,2.87,178.2,178.12,0.07]
[1755627709851,2.87,178.23,178.12,0.07]
[1755627710147,2.87,178.23,178.13,0.07]
[1755627710547,2.87,178.23,178.13,4.71705263]
[1755627710748,2.87,178.27,178.14,0.07]
[1755627711047,2.87,178.27,178.14,4.64705263]
[1755627711241,2.87,178.31,178.15,0.07]
[1755627711444,2.5329613,178.3,178.15,0.07]
[1755627711644,2.87,178.29,178.15,0.07]
[1755627712147,2.5322847,178.28,178.15,0.07]
[1755627712352,2.87,178.27,178.15,0.07]
[1755627712851,2.87,178.27,178.15,4.71705263]
[1755627713155,2.87,178.27,178.17,0.07]
[1755627714748,7.487512,178.32,178.16,4.64705263]
[1755627715044,2.87,178.29,178.18,0.07]
[1755627715251,2.87,178.29,178.18,4.64705263]
[1755627715446,138.9,178.33,178.19,10.32865263]
[1755627715651,2.87,178.32,178.2,0.07]
[1755627715846,2.87,178.32,178.2,4.64705263]
[1755627716049,2.87,178.32,178.21,0.07]
[1755627722253,377.34,178.35,178.21,0.07]
[1755627722555,2.9,178.38,178.27,7.487512]
[1755627722753,2.9,178.44,178.31,7.487512]
[1755627722957,2.9,178.44,178.32,0.07]
[1755627726350,2.9,178.43,178.28,0.07]
[1755627727658,377.18,178.48,178.34,0.03631555]
[1755627727659,2.9,178.35,178.34,0.03631555]
[1755627728162,2.9,178.35,178.28,0.07]
[1755627728461,2.9,178.35,178.24,0.07]
[1755627729657,2.9,178.35,178.2,0.07]
[1755627731362,7.487512,178.32,178.2,0.07]
[1755627731562,2.9,178.31,178.2,0.07]
[1755627733558,2.9,178.35,178.2,0.07]
[1755627736165,2.9,178.31,178.2,0.07]
[1755627738567,2.9,178.43,178.23,7.487512]
[1755627738867,2.9,178.43,178.2,16.92]
[1755627738868,2.9,178.55,178.4,0.07]
[1755627739276,0.97573285,178.52,178.44,0.07]
[1755627740173,2.9,178.55,178.44,0.07]
[1755627740675,0.97521333,178.54,178.44,0.07]
[1755627742870,2.9,178.53,178.39,7.487512]
[1755627743070,2.9,178.53,178.39,7.557512]
[1755627744667,2.9,178.53,178.4,0.07]
[1755627744873,2.9,178.53,178.4,7.557512]
[1755627746672,2.9,178.53,178.4,0.07]
[1755627748767,2.9,178.53,178.42,0.07]
[1755627749679,2.9,178.53,178.46,0.03864117]
[1755627749977,0.04021099,178.49,178.46,0.03864117]
[1755627751079,3.02,178.48,178.46,0.03864117]
[1755627751879,0.04021099,178.49,178.46,0.03864117]
[1755627752081,3.02,178.48,178.46,0.03864117]
[1755627752279,3.02,178.47,178.36,194.09633845]
[1755627752479,7.487512,178.46,178.3,0.1]
[1755627752676,3.02,178.45,178.3,0.1]
[1755627753576,0.04047056,178.39,178.3,0.1]
[1755627755283,0.04047056,178.39,178.3,7.487512]
[1755627755478,0.04047056,178.39,178.31,0.1]
[1755627759180,3.06047056,178.39,178.26,0.1]
[1755627759580,3.02,178.39,178.26,0.1]
[1755627759979,0.03950274,178.34,178.26,0.1]
[1755627763485,0.03950274,178.34,178.27,0.1]
[1755627763784,0.03950274,178.34,178.31,0.1]
[1755627763985,0.03950274,178.34,178.32,0.1]
[1755627764185,0.03950274,178.34,178.33,0.1]
[1755627764386,0.03950274,178.34,178.3,150.167512]
[1755627764588,0.03950274,178.34,178.31,0.1]
[1755627764786,3.02,178.43,178.33,0.1]
[1755627770188,3.02,178.43,178.3,7.487512]
[1755627770389,3.02,178.43,178.29,142.48]
[1755627770585,7.487512,178.41,178.29,142.48]
[1755627770887,3.02,178.4,178.29,142.48]
[1755627771193,7.487512,178.41,178.29,142.48]
[1755627771387,3.02,178.39,178.29,142.48]
[1755627774786,3.02,178.38,178.29,142.48]
[1755627778188,3.02,178.38,178.25,195.94053435]
[1755627781097,2.95,178.36,178.25,195.84053435]
[1755627781495,2.95,178.32,178.25,195.84053435]
[1755627782993,7.487512,178.37,178.25,195.84053435]
[1755627783199,2.95,178.36,178.26,0.1]
[1755627784092,376.92,178.39,178.26,0.1]
[1755627786697,2.95,178.4,178.26,4.64705263]
[1755627786892,2.95,178.4,178.27,0.1]
[1755627791796,2.95,178.4,178.25,337.94053435]
[1755627792102,2.95,178.36,178.25,337.94053435]
[1755627792897,2.95,178.36,178.23,0.1]
[1755627793202,2.95,178.32,178.23,0.1]
[1755627794498,2.95,178.36,178.23,0.1]
[1755627794803,2.95,178.34,178.23,0.1]
[1755627796004,2.95,178.34,178.24,0.1]
[1755627796398,0.04217642,178.31,178.27,0.03737034]
[1755627796799,0.04217642,178.31,178.29,0.1]
[1755627797003,0.04217642,178.31,178.27,0.03737034]
[1755627797308,0.04217642,178.31,178.3,0.1]
[1755627799509,0.04217642,178.31,178.27,0.03737034]
[1755627799709,0.04217642,178.31,178.28,0.1]
[1755627800199,2.99217642,178.31,178.27,0.03737034]
[1755627800403,2.95,178.3,178.27,0.03737034]
[1755627800598,0.04217642,178.31,178.27,0.03737034]
[1755627801008,2.95,178.29,178.27,0.03737034]
[1755627801610,2.99217642,178.31,178.27,0.03737034]
[1755627802307,2.95,178.3,178.27,0.03737034]
[1755627802908,2.95,178.29,178.27,0.03737034]
[1755627803305,2.95,178.3,178.27,0.03737034]
[1755627804511,0.04217642,178.31,178.27,0.13737034]
[1755627804916,2.95,178.3,178.27,0.03737034]
[1755627805510,0.04217642,178.31,178.27,0.03737034]
[1755627805706,2.95,178.3,178.19,0.1]
[1755627807012,0.04278655,178.26,178.19,0.1]
[1755627814716,0.04278655,178.26,178.2,0.15]
[1755627814913,0.04278655,178.26,178.2,4.700072]
[1755627815115,0.04278655,178.26,178.22,0.15]
[1755627815315,0.04278655,178.26,178.24,0.15]
[1755627816116,0.04278655,178.26,178.21,4.700072]
[1755627816318,0.04278655,178.26,178.24,0.15]
[1755627816519,0.04278655,178.26,178.23,0.15]
[1755627816717,0.04278655,178.26,178.24,0.15]
[1755627817422,2.99,178.25,178.21,4.700072]
[1755627817610,2.99,178.25,178.21,0.15]
[1755627817810,0.04278655,178.26,178.2,4.700072]
[1755627818216,2.99,178.25,178.2,4.850072]
[1755627818416,0.04278655,178.26,178.2,4.850072]
[1755627818622,3.03278655,178.26,178.2,4.700072]
[1755627818825,3.03278655,178.26,178.18,4.700072]
[1755627819218,3.03278655,178.26,178.18,4.850072]
[1755627819521,0.04278655,178.26,178.19,0.15]
[1755627819723,0.04278655,178.26,178.19,4.850072]
[1755627820025,0.04278655,178.26,178.19,4.700072]
[1755627820324,0.04278655,178.26,178.2,4.700072]
[1755627820526,0.04278655,178.26,178.21,10.311072]
[1755627820913,0.04278655,178.26,178.24,0.15]
[1755627821118,0.04278655,178.26,178.25,0.15]
[1755627821617,2.99,178.33,178.25,4.850072]
[1755627822818,2.99,178.36,178.26,0.15]
[1755627823017,2.99,178.36,178.28,0.15]
[1755627823018,0.03665148,178.31,178.28,0.15]
[1755627823221,0.03665148,178.31,178.3,0.15]
[1755627824624,0.03665148,178.31,178.28,0.03748582]
[1755627824928,3.02665148,178.31,178.28,0.03748582]
[1755627826424,2.99,178.3,178.28,0.03748582]
[1755627827126,0.03665148,178.31,178.28,0.03748582]
[1755627827328,3.02665148,178.31,178.28,0.03748582]
[1755627828925,2.99,178.29,178.28,0.03748582]
[1755627829428,0.03665148,178.31,178.28,0.03748582]
[1755627829633,0.03665148,178.31,178.28,0.18748582]
[1755627829833,2.99,178.3,178.28,0.03748582]
[1755627831131,0.03665148,178.31,178.28,0.03748582]
[1755627831334,0.03665148,178.31,178.28,0.18748582]
[1755627831840,0.03665148,178.31,178.29,0.15]
[1755627832046,0.03665148,178.31,178.3,0.15]
[1755627832337,2.99,178.37,178.3,0.15]
[1755627833042,2.99,178.37,178.3,10.458272]
[1755627833542,2.99,178.37,178.32,0.03733439]
[1755627833845,2.99,178.37,178.32,0.18733439]
[1755627834041,2.99,178.37,178.33,0.15]
[1755627834242,141.92,178.44,178.32,0.03733439]
[1755627834445,2.99,178.43,178.32,0.18733439]
[1755627834743,2.99,178.43,178.32,0.15]
[1755627834946,2.99,178.43,178.36,0.03580189]
[1755627836344,2.99,178.52,178.4,7.487512]
[1755627836540,2.99,178.52,178.41,4.70310145]
[1755627836737,2.99,178.52,178.42,4.85310145]
[1755627837137,2.99,178.52,178.45,0.036141]
[1755627839742,0.97521333,178.54,178.45,0.186141]
[1755627840541,2.89,178.55,178.45,0.186141]
[1755627841043,2.89,178.55,178.45,0.036141]
[1755627844251,2.89,178.55,178.46,0.15]
[1755627845046,2.89,178.55,178.49,0.04183214]
[1755627849643,2.89,178.55,178.42,0.15]
[1755627853346,2.89,178.55,178.43,0.19]
[1755627853748,2.89,178.55,178.43,5.7939]
[1755627853948,2.89,178.55,178.44,0.19]
[1755627855555,2.89,178.55,178.41,0.19]
[1755627858851,2.89,178.55,178.42,0.19]
[1755627859054,2.89,178.55,178.43,5.6041]
[1755627859253,2.89,178.55,178.44,0.19]
[1755627859658,2.89,178.55,178.47,0.19]
[1755627861356,2.89,178.55,178.47,5.7929]
[1755627863458,2.89,178.55,178.48,5.6025]
[1755627863761,2.89,178.58,178.49,0.19]
[1755627867158,2.89,178.58,178.49,5.7922]
[1755627867554,2.89,178.58,178.5,0.19]
[1755627872263,2.89,178.58,178.5,4.98162746]
[1755627873962,3.12,178.62,178.53,4.79162746]
[1755627874169,3.12,178.62,178.54,0.18]
[1755627874357,3.12,178.62,178.54,5.7807]
[1755627875773,3.12,178.62,178.56,0.18]
[1755627880768,0.97480357,178.64,178.56,0.18]
[1755627881073,4.09480357,178.64,178.56,0.18]
[1755627883974,3.12,178.64,178.56,0.18]
[1755627884369,3.12,178.64,178.56,5.78]
[1755627884769,3.12,178.64,178.56,0.18]
[1755627884973,3.12,178.64,178.53,4.97162746]
[1755627885171,4.79162746,178.64,178.49,4.64895611]
[1755627885378,3.12,178.63,178.48,9.62058357]
[1755627885575,3.12,178.6,178.48,4.97162746]
[1755627886375,3.12,178.6,178.49,0.18]
[1755627887573,3.12,178.6,178.47,376.42]
[1755627888178,4.79162746,178.58,178.47,376.42]
[1755627888476,3.12,178.57,178.45,4.97162746]
[1755627888677,6.21776467,178.65,178.46,16.84]
[1755627888872,3.12,178.75,178.65,0.18]
[1755627889679,3.12,178.75,178.61,10.56992746]
[1755627889875,3.12,178.75,178.61,0.18]
[1755627890076,3.12,178.75,178.61,4.97162746]
[1755627890279,3.12,178.75,178.61,0.18]
[1755627890676,3.12,178.75,178.63,0.18]
[1755627890878,3.12,178.75,178.66,5.5969]
[1755627891073,3.12,178.75,178.64,0.18]
[1755627891477,3.12,178.75,178.65,5.597]
[1755627892380,3.12,178.75,178.64,0.18]
[1755627893281,3.12,178.75,178.6,5.7786]
[1755627893689,3.12,178.75,178.6,0.18]
[1755627894282,7.44421106,178.74,178.6,0.18]
[1755627894586,3.12,178.73,178.6,0.18]
[1755627894788,3.12,178.73,178.59,376.44]
[1755627895788,3.12,178.73,178.59,376.62]
[1755627896094,3.12,178.73,178.6,0.18]
[1755627897386,3.12,178.73,178.64,0.18]
[1755627897789,3.12,178.73,178.64,5.7773]
[1755627897988,3.12,178.73,178.64,0.18]
[1755627900390,3.12,178.73,178.62,146.06]
[1755627902991,3.12,178.73,178.63,0.17]
[1755627903393,3.12,178.73,178.63,5.7676]
[1755627903592,3.12,178.73,178.63,0.17]
[1755627906102,0.97444872,178.76,178.67,0.16]
[1755627906401,2.88,178.77,178.67,0.16]
[1755627906997,2.88,178.77,178.68,5.5963]
[1755627909002,2.88,178.77,178.67,0.16]
[1755627909999,2.88,178.77,178.63,0.16]
[1755627910199,2.88,178.77,178.63,145.62]
[1755627910397,2.88,178.77,178.63,0.16]
[1755627911600,2.88,178.77,178.63,5.7577]
[1755627911904,2.88,178.77,178.63,0.16]
[1755627913613,2.88,178.77,178.66,0.16]
[1755627913909,2.88,178.77,178.66,7.60421106]
[1755627917008,2.88,178.77,178.64,0.16]
[1755627925517,2.88,178.77,178.65,0.16]
[1755627929821,2.88,178.77,178.65,4.64895611]
[1755627930019,2.88,178.77,178.68,0.17]
[1755627931321,2.88,178.77,178.68,5.7663]
[1755627931525,2.88,178.77,178.69,0.17]
[1755627932922,0.97402597,178.79,178.69,0.17]
[1755627933119,3.16,178.81,178.7,4.64895611]
[1755627933315,3.16,178.81,178.71,4.81895611]
[1755627933719,3.16,178.81,178.72,4.81895611]
[1755627933915,3.16,178.81,178.72,0.17]
[1755627935414,3.16,178.81,178.69,4.64895611]
[1755627935825,3.16,178.81,178.68,4.81895611]
[1755627936026,3.16,178.81,178.69,0.17]
[1755627936923,3.16,178.81,178.7,0.17]
[1755627937125,3.16,178.81,178.71,0.17]
[1755627937325,3.16,178.81,178.72,12.26316717]
[1755627937628,3.16,178.81,178.73,4.64895611]
[1755627937928,3.16,178.81,178.74,0.17]
[1755627938117,0.97367169,178.83,178.74,0.17]
[1755627938316,3.16,178.84,178.74,4.81895611]
[1755627938520,3.16,178.84,178.75,0.17]
[1755627939423,3.16,178.84,178.75,4.81895611]
[1755627941118,3.16,178.84,178.76,0.17]
[1755627941319,3.16,178.84,178.76,4.81895611]
[1755627941523,0.97357635,178.86,178.77,0.17]
[1755627941925,3.16,178.88,178.77,4.64895611]
[1755627942126,3.16,178.88,178.78,4.64895611]
[1755627942324,3.16,178.88,178.78,0.17]
[1755627946432,3.16,178.88,178.79,4.77576905]
[1755627946827,3.16,178.88,178.78,0.17]
[1755627952231,4.77576905,178.85,178.72,385.51175248]
[1755627952436,3.16,178.84,178.73,0.17]
[1755627953137,3.16,178.84,178.76,0.17]
[1755627959328,3.16,178.84,178.72,385.50820145]
[1755627959532,3.16,178.84,178.73,0.17]
[1755627960230,3.16,178.84,178.69,0.17]
[1755627960231,4.77576905,178.83,178.69,0.17]
[1755627960440,2.97,178.82,178.69,0.17]
[1755627960833,7.19109595,178.9,178.66,0.17]
[1755627960834,2.97,178.79,178.66,0.17]
[1755627961151,2.97,178.76,178.66,0.17]
[1755627963536,2.97,178.76,178.69,0.17]
[1755627963839,2.97,178.76,178.68,4.77576905]
[1755627964037,2.97,178.76,178.66,0.17]
[1755627966939,2.97,178.76,178.69,0.17]
[1755627967650,2.97,178.76,178.66,0.17]
[1755627969640,2.97,178.76,178.69,0.17]
[1755627969951,2.97,178.8,178.69,0.17]
[1755627970543,4.77576905,178.8,178.69,0.17]
[1755627970746,2.97,178.79,178.66,143.35]
[1755627973243,2.97,178.76,178.66,143.35]
[1755627973842,2.97,178.76,178.66,143.18]
[1755627974046,2.97,178.86,178.67,4.6524324]
[1755627974256,2.97,178.85,178.73,0.17]
[1755627975947,2.97,178.85,178.73,5.7647]
[1755627976256,2.97,178.85,178.76,0.17]
[1755627976753,2.97,178.85,178.73,0.17]
[1755627977148,2.97,178.85,178.76,0.17]
[1755627982345,2.97,178.85,178.72,4.94576905]
[1755627982549,2.97,178.82,178.72,0.17]
[1755627983157,2.97,178.82,178.72,4.94576905]
[1755627985160,2.97,178.82,178.72,0.17]
[1755627985948,7.74576905,178.82,178.72,0.17]
[1755627986153,4.77576905,178.82,178.69,4.77576905]
[1755627986355,2.97,178.81,178.69,4.77576905]
[1755627989059,2.97,178.81,178.68,0.17]
[1755627991464,2.86,178.78,178.68,0.17]
[1755627999470,2.86,178.77,178.65,0.17]
[1755627999658,2.86,178.74,178.65,0.17]
[1755628006571,2.86,178.79,178.68,0.16]
[1755628011073,2.86,178.79,178.66,143.22]
[1755628011663,4.77576905,178.77,178.65,0.16]
[1755628011870,2.86,178.76,178.65,0.16]
[1755628012664,2.86,178.76,178.66,0.16]
[1755628017972,2.86,178.76,178.69,0.03813471]
[1755628018173,2.9,178.72,178.69,0.03813471]
[1755628019279,0.03539847,178.73,178.69,0.03813471]
[1755628019479,2.9,178.7,178.69,0.03813471]
[1755628021582,2.9,178.7,178.62,212.76941708]
[1755628021981,2.9,178.7,178.63,0.22]
[1755628022682,0.04085052,178.68,178.63,0.22]
[1755628022882,2.94085052,178.68,178.63,0.22]
[1755628023282,2.94085052,178.68,178.64,0.22]
[1755628023474,2.9,178.67,178.62,212.98941708]
[1755628023680,2.9,178.67,178.63,0.22]
[1755628024874,2.9,178.67,178.62,212.76941708]
[1755628024875,0.04085052,178.68,178.62,212.76941708]
[1755628025081,0.04085052,178.68,178.62,212.98941708]
[1755628025888,0.04085052,178.68,178.63,0.22]
[1755628026091,0.04085052,178.68,178.64,0.22]
[1755628026284,0.04085052,178.68,178.62,152.75386905]
[1755628026687,0.04085052,178.68,178.64,0.22]
[1755628026886,0.04085052,178.68,178.63,4.65232002]
[1755628027391,2.94085052,178.68,178.62,142.6]
[1755628029090,2.94085052,178.68,178.59,4.65232002]
[1755628029288,2.94085052,178.68,178.58,0.22]
[1755628029491,2.9,178.67,178.55,380.99232002]
[1755628029691,2.9,178.67,178.55,376.34]
[1755628030293,0.0407138,178.63,178.55,376.34]
[1755628031596,2.9,178.62,178.55,0.22]
[1755628032092,2.9,178.62,178.54,142.28]
[1755628033905,2.9,178.62,178.54,142.5]
[1755628034497,2.9,178.62,178.54,142.28]
[1755628034698,7.67576905,178.62,178.52,0.22]
[1755628034900,2.9,178.58,178.49,0.22]
[1755628035602,0.04066895,178.55,178.49,0.22]
[1755628035797,0.04066895,178.55,178.49,4.99576905]
[1755628036096,0.04066895,178.55,178.49,4.77576905]
[1755628036294,0.04066895,178.55,178.54,0.22]
[1755628038604,2.9,178.62,178.54,0.78]
[1755628038904,2.9,178.62,178.55,4.77576905]